bitfinex-derivatives/quotes_BTCF0:USTF0_20240910
["timestamp","ask_amount","ask_price","bid_price","bid_amount"]
[1725939617217,0.089069,56642.0,56641.0,0.20785272]
[1725939617619,0.089069,56642.0,56641.0,0.20785276]
[1725939617921,0.089069,56642.0,56641.0,0.10201621]
[1725939618417,0.090069,56642.0,56641.0,0.10201621]
[1725939620225,0.178338,56642.0,56641.0,0.10201621]
[1725939622123,0.20953297,56642.0,56641.0,0.19023961]
[1725939622324,0.20953297,56642.0,56641.0,0.10201621]
[1725939622519,0.088273,56639.0,56638.0,0.10586486]
[1725939622717,0.089073,56639.0,56638.0,0.20790832]
[1725939624320,0.089073,56639.0,56638.0,0.21090832]
[1725939625132,0.089073,56639.0,56638.0,0.21390832]
[1725939625731,0.089073,56639.0,56638.0,0.21090832]
[1725939625922,0.090073,56639.0,56638.0,0.2098232]
[1725939626531,0.090073,56639.0,56638.0,0.2078232]
[1725939627527,0.089073,56639.0,56638.0,0.20781266]
[1725939628029,0.177346,56639.0,56638.0,0.1019478]
[1725939628227,0.177346,56639.0,56638.0,0.19014736]
[1725939628426,0.177346,56639.0,56638.0,0.08819956]
[1725939628629,0.177346,56639.0,56638.0,0.1902823]
[1725939629626,0.177346,56639.0,56638.0,0.08819956]
[1725939630130,0.088275,56638.0,56637.0,0.08819956]
[1725939630338,0.089075,56638.0,56637.0,0.10211897]
[1725939630829,0.089075,56638.0,56637.0,0.19029723]
[1725939631023,0.089075,56638.0,56637.0,0.10211897]
[1725939631220,0.089075,56638.0,56637.0,0.19029117]
[1725939631729,0.089075,56638.0,56637.0,0.10211897]
[1725939632330,0.089075,56638.0,56637.0,0.19128506]
[1725939634633,0.089075,56638.0,56637.0,0.10311897]
[1725939635329,0.089075,56638.0,56637.0,0.19127591]
[1725939635536,0.089075,56638.0,56637.0,0.10311897]
[1725939636633,0.17735,56638.0,56637.0,0.10311897]
[1725939636828,0.089075,56638.0,56637.0,0.19127674]
[1725939637139,0.089075,56638.0,56637.0,0.10211897]
[1725939637533,0.090075,56638.0,56637.0,0.10211897]
[1725939638236,0.17735,56638.0,56637.0,0.19027959]
[1725939638435,0.17935,56638.0,56637.0,0.19027959]
[1725939638841,0.18035,56638.0,56637.0,0.19028423]
[1725939639032,0.18035,56638.0,56637.0,0.08816526]
[1725939639340,0.088277,56637.0,56636.0,0.08816526]
[1725939639636,0.089077,56637.0,56636.0,0.08816526]
[1725939640041,0.089077,56637.0,56636.0,0.19025707]
[1725939640544,0.089077,56637.0,56636.0,0.08816526]
[1725939640741,0.089077,56637.0,56636.0,0.10218688]
[1725939640937,0.177354,56637.0,56636.0,0.10218688]
[1725939641841,0.181354,56637.0,56636.0,0.10218688]
[1725939642351,0.184354,56637.0,56636.0,0.10218688]
[1725939642731,0.184354,56637.0,56633.0,0.10586486]
[1725939642732,0.088281,56634.0,56633.0,0.0529234]
[1725939642934,0.088281,56634.0,56624.0,0.10586486]
[1725939642935,0.088283,56633.0,56632.0,0.07056453]
[1725939643140,0.088283,56633.0,56630.0,0.07056728]
[1725939643141,0.1,56633.0,56630.0,0.07056728]
[1725939643448,0.176576,56630.0,56629.0,0.07056728]
[1725939643640,0.276576,56630.0,56629.0,0.07056728]
[1725939643948,0.277376,56630.0,56629.0,0.07056728]
[1725939644136,0.088289,56629.0,56628.0,0.07056728]
[1725939644336,0.189089,56629.0,56628.0,0.07056728]
[1725939644736,0.189089,56629.0,56620.0,0.0041]
[1725939644737,0.0883,56622.0,56620.0,0.0041]
[1725939644943,0.0008,56621.0,56618.0,0.12914544]
[1725939645137,0.0008,56619.0,56618.0,0.12914544]
[1725939645448,0.0008,56621.0,56618.0,0.12914544]
[1725939645944,0.089102,56621.0,56618.0,0.12914544]
[1725939646143,0.088304,56620.0,56618.0,0.14314544]
[1725939647246,0.001,56619.0,56618.0,0.15714544]
[1725939648046,0.090304,56620.0,56618.0,0.15714544]
[1725939648750,0.089304,56620.0,56618.0,0.14314544]
[1725939648945,0.001,56619.0,56618.0,0.15714544]
[1725939649248,0.089305,56619.0,56618.0,0.14314544]
[1725939649450,0.090305,56619.0,56618.0,0.15714544]
[1725939650142,0.089305,56619.0,56618.0,0.15714544]
[1725939650343,0.089305,56619.0,56618.0,0.24545144]
[1725939650544,0.001,56620.0,56619.0,0.088305]
[1725939650743,0.001,56620.0,56619.0,0.188305]
[1725939651448,0.089102,56621.0,56619.0,0.188305]
[1725939652346,0.088303,56620.0,56619.0,0.188305]
[1725939653250,0.089303,56620.0,56619.0,0.202305]
[1725939653453,0.090303,56620.0,56619.0,0.215305]
[1725939657652,0.090303,56620.0,56619.0,0.31639574]
[1725939659060,0.090303,56620.0,56619.0,0.31636865]
[1725939659550,0.090303,56620.0,56619.0,0.43683745]
[1725939659855,0.090303,56620.0,56619.0,0.31636865]
[1725939660256,0.090303,56620.0,56619.0,0.4368585]
[1725939661254,0.090303,56620.0,56619.0,0.31636865]
[1725939661945,0.0041,56628.0,56619.0,0.42208243]
[1725939662153,0.0041,56628.0,56626.0,0.1]
[1725939662356,0.088291,56628.0,56627.0,0.19678251]
[1725939662747,0.088291,56628.0,56627.0,0.19674696]
[1725939663165,0.090291,56628.0,56627.0,0.0958]
[1725939663763,0.089291,56628.0,56627.0,0.0958]
[1725939663963,0.089291,56628.0,56627.0,0.0998]
[1725939664162,0.088291,56628.0,56627.0,0.20081643]
[1725939664462,0.088291,56628.0,56627.0,0.30581643]
[1725939664851,0.088291,56628.0,56627.0,0.33841464]
[1725939665660,0.088291,56628.0,56627.0,0.42670664]
[1725939665968,0.088286,56632.0,56631.0,0.088285]
[1725939666157,0.088286,56632.0,56631.0,0.28930143]
[1725939670961,0.08828,56635.0,56634.0,0.08828]
[1725939671167,0.08828,56635.0,56634.0,0.18868]
[1725939671571,0.08828,56635.0,56634.0,0.10138214]
[1725939672564,0.09128,56635.0,56634.0,0.10138214]
[1725939672768,0.09528,56635.0,56634.0,0.10123169]
[1725939675970,0.09528,56635.0,56634.0,0.1332903]
[1725939676273,0.09528,56635.0,56634.0,0.2215713]
[1725939677369,0.09528,56635.0,56634.0,0.1332903]
[1725939677569,0.09528,56635.0,56634.0,0.2215713]
[1725939677970,0.09528,56635.0,56634.0,0.30973036]
[1725939678171,0.09528,56635.0,56634.0,0.2215713]
[1725939678372,0.09528,56635.0,56634.0,0.30973123]
[1725939679175,0.18356,56635.0,56634.0,0.0004]
[1725939680068,0.09528,56635.0,56634.0,0.0004]
[1725939688271,0.09528,56635.0,56634.0,0.08855993]
[1725939689283,0.09528,56635.0,56634.0,0.18953535]
[1725939691583,0.09528,56635.0,56634.0,0.10137542]
[1725939692580,0.09528,56635.0,56634.0,0.10140665]
[1725939700990,0.09528,56635.0,56634.0,0.0004]
[1725939701489,0.09528,56635.0,56634.0,0.10138188]
[1725939701690,0.09528,56635.0,56634.0,0.0004]
[1725939703986,0.09528,56635.0,56634.0,0.10137752]
[1725939719201,0.09528,56635.0,56634.0,0.0004]
[1725939719399,0.09528,56635.0,56634.0,0.10162567]
[1725939722509,0.09528,56635.0,56634.0,0.20733357]
[1725939722710,0.09528,56635.0,56634.0,0.10162567]
[1725939722897,0.09528,56635.0,56634.0,0.20759031]
[1725939723812,0.09528,56635.0,56634.0,0.29587131]
[1725939724313,0.09528,56635.0,56634.0,0.18990667]
[1725939725504,0.09528,56635.0,56634.0,0.3105241]
[1725939726306,0.09528,56635.0,56634.0,0.18990667]
[1725939738208,0.09528,56635.0,56634.0,0.18871719]
[1725939740614,0.18356,56635.0,56634.0,0.10043619]
[1725939740817,0.09528,56635.0,56634.0,0.10043619]
[1725939741920,0.18356,56635.0,56634.0,0.10043619]
[1725939742120,0.09528,56635.0,56634.0,0.10043619]
[1725939743213,0.09528,56635.0,56634.0,0.0004]
[1725939743417,0.18356,56635.0,56634.0,0.18878632]
[1725939743817,0.09528,56635.0,56634.0,0.18878632]
[1725939744022,0.18356,56635.0,56634.0,0.18878632]
[1725939744318,0.09528,56635.0,56634.0,0.18878632]
[1725939744519,0.09528,56635.0,56634.0,0.08868946]
[1725939745415,0.12655253,56635.0,56634.0,0.08868946]
[1725939746017,0.12655253,56635.0,56634.0,0.0004]
[1725939746018,0.21483253,56635.0,56634.0,0.0004]
[1725939750419,0.30311253,56635.0,56634.0,0.0004]
[1725939750635,0.21483253,56635.0,56634.0,0.0004]
[1725939751021,0.30311253,56635.0,56634.0,0.0004]
[1725939751419,0.21483253,56635.0,56634.0,0.0004]
[1725939751919,0.28356,56635.0,56634.0,0.07099402]
[1725939752220,0.09528,56635.0,56634.0,0.0004]
[1725939752424,0.09528,56635.0,56634.0,0.08868946]
[1725939753122,0.09528,56635.0,56634.0,0.0004]
[1725939756729,0.09528,56635.0,56634.0,0.03156385]
[1725939757538,0.18356,56635.0,56634.0,0.18865753]
[1725939757720,0.09528,56635.0,56634.0,0.08868946]
[1725939758125,0.09528,56635.0,56634.0,0.18862217]
[1725939758328,0.09528,56635.0,56634.0,0.18861098]
[1725939758631,0.09528,56635.0,56634.0,0.0004]
[1725939762333,0.18356,56635.0,56634.0,0.0004]
[1725939762928,0.09528,56635.0,56634.0,0.0004]
[1725939763133,0.18356,56635.0,56634.0,0.0004]
[1725939781344,0.27184,56635.0,56634.0,0.0004]
[1725939784744,0.27184,56635.0,56634.0,0.07102366]
[1725939786546,0.80156,56635.0,56634.0,0.07102366]
[1725939786748,0.176582,56628.0,56626.0,0.0041]
[1725939786948,0.2477,56627.0,56619.0,0.05351347]
[1725939787249,0.088298,56623.0,56621.0,0.05298228]
[1725939787444,0.088303,56620.0,56619.0,0.0008]
[1725939787653,0.706846,56620.0,56619.0,0.0008]
[1725939787848,1.406846,56620.0,56619.0,0.0008]
[1725939788249,0.176618,56616.0,56615.0,0.05298228]
[1725939788556,0.176624,56614.0,56613.0,0.00388696]
[1725939788850,0.177424,56614.0,56613.0,0.00388696]
[1725939790452,0.178424,56614.0,56613.0,0.01288696]
[1725939791259,0.178424,56614.0,56613.0,0.00388696]
[1725939791260,0.180424,56614.0,56613.0,0.00388696]
[1725939792355,0.184424,56614.0,56613.0,0.00388696]
[1725939792550,0.21685782,56614.0,56613.0,0.00388696]
[1725939794749,0.196112,56614.0,56613.0,0.00388696]
[1725939806167,0.284424,56614.0,56613.0,0.00388696]
[1725939806951,0.088314,56613.0,56612.0,0.0455]
[1725939807159,0.089114,56613.0,56612.0,0.0455]
[1725939808254,0.091114,56613.0,56612.0,0.0455]
[1725939808455,0.094114,56613.0,56612.0,0.0455]
[1725939810057,0.182428,56613.0,56612.0,0.0455]
[1725939812160,0.182428,56613.0,56609.0,0.10128228]
[1725939812161,0.176638,56610.0,56609.0,0.10128228]
[1725939812365,0.189119,56610.0,56606.0,0.088325]
[1725939812557,0.189123,56607.0,56606.0,0.088325]
[1725939812764,0.188323,56607.0,56606.0,0.088325]
[1725939815166,0.188323,56607.0,56606.0,0.092325]
[1725939815366,0.188323,56607.0,56606.0,0.004]
[1725939815367,0.276646,56607.0,56606.0,0.004]
[1725939815667,0.276646,56607.0,56606.0,0.008]
[1725939816267,0.276646,56607.0,56606.0,0.10385436]
[1725939816461,0.08833,56603.0,56602.0,0.1433]
[1725939816667,0.18833,56603.0,56602.0,0.23937234]
[1725939816863,0.18913,56603.0,56602.0,0.1433]
[1725939817066,0.27746,56603.0,56602.0,0.1433]
[1725939817369,0.18913,56603.0,56602.0,0.1433]
[1725939817667,0.18913,56603.0,56602.0,0.23862991]
[1725939817864,0.19013,56603.0,56602.0,0.27893645]
[1725939818063,0.19013,56603.0,56602.0,0.38487394]
[1725939818263,0.19113,56603.0,56602.0,0.38787394]
[1725939818566,0.19113,56603.0,56602.0,0.37026745]
[1725939819073,0.09113,56603.0,56602.0,0.47619343]
[1725939819564,0.09113,56603.0,56602.0,0.37026745]
[1725939819769,0.09113,56603.0,56602.0,0.47619343]
[1725939821368,0.09113,56603.0,56602.0,0.37026745]
[1725939824165,0.0028,56603.0,56602.0,0.37026745]
[1725939824464,0.03694022,56610.0,56606.0,0.088325]
[1725939824465,0.088325,56607.0,56606.0,0.088325]
[1725939826668,0.0041,56615.0,56602.0,0.28740654]
[1725939826872,0.088316,56612.0,56610.0,0.088318]
[1725939827069,0.088316,56612.0,56611.0,0.0962]
[1725939827271,0.088316,56612.0,56611.0,0.1461]
[1725939828067,0.089316,56612.0,56611.0,0.1461]
[1725939828268,0.090316,56612.0,56611.0,0.1461]
[1725939828570,0.089316,56612.0,56611.0,0.1461]
[1725939828865,0.091316,56612.0,56611.0,0.234417]
[1725939834670,0.091316,56612.0,56611.0,0.26559054]
[1725939835470,0.091316,56612.0,56611.0,0.1461]
[1725939836172,0.091316,56612.0,56611.0,0.234417]
[1725939836477,0.091316,56612.0,56611.0,0.2873833]
[1725939836663,0.191316,56612.0,56611.0,0.2873833]
[1725939836863,0.003,56612.0,56611.0,0.2873833]
[1725939837063,0.003,56612.0,56611.0,0.234417]
[1725939840278,0.091316,56612.0,56611.0,0.234417]
[1725939842776,0.091316,56612.0,56611.0,0.184517]
[1725939843375,0.091316,56612.0,56611.0,0.136817]
[1725939844974,0.091316,56612.0,56611.0,0.088317]
[1725939848673,0.191316,56612.0,56611.0,0.088317]
[1725939851778,0.003,56612.0,56611.0,0.088317]
[1725939851978,0.003,56612.0,56611.0,0.27164993]
[1725939852180,0.088299,56623.0,56611.0,1.33084013]
[1725939852480,0.0041,56623.0,56622.0,0.0883]
[1725939852683,0.088282,56634.0,56622.0,0.23459352]
[1725939852989,0.185176,56638.0,56633.0,0.1]
[1725939853284,0.088276,56638.0,56637.0,0.0004]
[1725939854277,0.102276,56638.0,56637.0,0.0004]
[1725939855185,0.116276,56638.0,56637.0,0.0014]
[1725939856486,0.115276,56638.0,56637.0,0.0024]
[1725939856684,1.15668,56638.0,56629.0,0.05278372]
[1725939856987,0.088297,56624.0,56623.0,0.03210565]
[1725939857288,0.088697,56624.0,56623.0,0.03210565]
[1725939857590,0.088298,56623.0,56622.0,0.0004]
[1725939857789,0.248698,56623.0,56622.0,0.0004]
[1725939857991,0.088302,56621.0,56620.0,0.05278372]
[1725939858195,0.088702,56621.0,56620.0,0.05278372]
[1725939859285,0.089702,56621.0,56620.0,0.05278372]
[1725939860487,0.090702,56621.0,56620.0,0.05278372]
[1725939861087,0.090702,56621.0,56619.0,0.088305]
[1725939861288,0.090702,56621.0,56620.0,0.05279472]
[1725939861494,0.090302,56621.0,56620.0,0.05279472]
[1725939862088,0.090302,56621.0,56619.0,0.088305]
[1725939862492,0.0004,56620.0,56619.0,0.088305]
[1725939862996,0.0004,56620.0,56619.0,0.089305]
[1725939863406,0.0004,56620.0,56619.0,0.090305]
[1725939863694,0.0004,56620.0,56619.0,0.16090313]
[1725939864292,0.0004,56620.0,56619.0,0.15990313]
[1725939864503,0.0004,56620.0,56619.0,0.090305]
[1725939865188,0.0004,56620.0,56619.0,0.16090313]
[1725939865489,0.0004,56620.0,56619.0,0.15990313]
[1725939865688,0.0004,56620.0,56619.0,0.090305]
[1725939866894,0.088703,56620.0,56619.0,0.090305]
[1725939867695,0.088703,56620.0,56619.0,0.16071225]
[1725939870105,0.088703,56620.0,56619.0,0.090305]
[1725939870401,0.088703,56620.0,56619.0,0.1597214]
[1725939871215,0.089703,56620.0,56619.0,0.088305]
[1725939871400,0.089703,56620.0,56619.0,0.15872467]
[1725939872207,0.089703,56620.0,56619.0,0.088305]
[1725939879512,0.088305,56619.0,56618.0,0.045]
[1725939879711,0.088705,56619.0,56618.0,0.045]
[1725939880717,0.088705,56619.0,56618.0,0.22770991]
[1725939881118,0.088705,56619.0,56618.0,0.13946224]
[1725939881510,0.088705,56619.0,56618.0,0.22876824]
[1725939881712,0.088705,56619.0,56618.0,0.22976824]
[1725939882515,0.088705,56619.0,56618.0,0.22776824]
[1725939883312,0.0004,56619.0,56618.0,0.22776824]
[1725939883520,0.088298,56624.0,56623.0,0.088298]
[1725939883717,0.088298,56624.0,56623.0,0.188698]
[1725939884627,0.094298,56624.0,56623.0,0.189698]
[1725939884815,0.006,56624.0,56623.0,0.3724962]
[1725939885210,0.012,56624.0,56623.0,0.28528165]
[1725939885808,0.012,56624.0,56623.0,0.31688303]
[1725939886222,0.012,56624.0,56623.0,0.21688303]
[1725939887819,0.012,56624.0,56623.0,0.21687869]
[1725939889617,0.012,56624.0,56623.0,0.21687773]
[1725939895734,0.012,56624.0,56623.0,0.12229938]
[1725939898332,0.100297,56624.0,56623.0,0.12229938]
[1725939900738,0.100297,56624.0,56623.0,0.0024]
[1725939903736,0.100297,56624.0,56623.0,0.09680571]
[1725939904142,0.100297,56624.0,56623.0,0.18510371]
[1725939910835,0.100297,56624.0,56623.0,0.0024]
[1725939912940,0.200297,56624.0,56623.0,0.0024]
[1725939914741,0.2326696,56624.0,56623.0,0.0024]
[1725939916650,0.3209666,56624.0,56623.0,0.0024]
[1725939918750,0.3209666,56624.0,56623.0,0.0970959]
[1725939921449,0.3209666,56624.0,56623.0,0.09708726]
[1725939921747,0.200297,56624.0,56623.0,0.18538641]
[1725939921950,0.288594,56624.0,56623.0,0.18538641]
[1725939923243,0.200297,56624.0,56623.0,0.18538641]
[1725939923450,0.288594,56624.0,56623.0,0.18538641]
[1725939923656,0.288594,56624.0,56623.0,0.09069915]
[1725939924339,0.200297,56624.0,56623.0,0.09069915]
[1725939924947,0.288594,56624.0,56623.0,0.09069915]
[1725939925753,0.288594,56624.0,56623.0,0.0024]
[1725939932552,0.376891,56624.0,56623.0,0.0024]
[1725939932753,0.376891,56624.0,56623.0,0.07302875]
[1725939932946,0.288594,56624.0,56623.0,0.07302875]
[1725939941061,0.288594,56624.0,56623.0,0.0024]
[1725939943061,0.100297,56624.0,56623.0,0.1024]
[1725939943264,0.10518514,56631.0,56623.0,0.2947575]
[1725939943466,0.0041,56633.0,56630.0,0.088286]
[1725939943667,0.1,56636.0,56632.0,0.0004]
[1725939943852,0.088284,56632.0,56631.0,0.05294698]
[1725939944063,0.088684,56632.0,56631.0,0.05294698]
[1725939945467,0.088286,56631.0,56630.0,0.14123298]
[1725939945667,0.088686,56631.0,56630.0,0.14123298]
[1725939947061,0.099686,56631.0,56630.0,0.14223298]
[1725939947862,0.099686,56631.0,56630.0,0.1206975]
[1725939948068,0.107686,56631.0,56630.0,0.1216975]
[1725939949066,0.0194,56631.0,56630.0,0.2216975]
[1725939949266,0.0041,56645.0,56630.0,0.2216975]
[1725939949267,0.0041,56645.0,56637.0,0.088277]
[1725939949473,0.0041,56655.0,56644.0,0.1]
[1725939949657,0.03247219,56658.0,56655.0,0.088248]
[1725939949859,0.1,56661.0,56656.0,0.094]
[1725939950064,0.088244,56658.0,56656.0,0.094]
[1725939950270,0.088245,56657.0,56656.0,0.094]
[1725939951460,0.102245,56657.0,56656.0,0.095]
[1725939952261,0.102245,56657.0,56656.0,0.096]
[1725939955565,0.102245,56657.0,56654.0,0.0004]
[1725939955566,0.176498,56655.0,56654.0,0.0004]
[1725939955970,0.176898,56655.0,56654.0,0.0004]
[1725939957870,0.177898,56655.0,56654.0,0.0014]
[1725939958171,0.184898,56655.0,56654.0,0.0024]
[1725939958366,0.714418,56655.0,56654.0,0.0024]
[1725939960673,0.184898,56655.0,56654.0,0.0024]
[1725939961374,0.273147,56655.0,56654.0,0.0024]
[1725939962380,0.30488025,56655.0,56654.0,0.0024]
[1725939962977,0.30488025,56655.0,56644.0,0.3222]
[1725939962978,0.088264,56645.0,56644.0,0.32197288]
[1725939963275,0.088264,56645.0,56644.0,0.00017288]
[1725939963668,0.088664,56645.0,56644.0,0.00017288]
[1725939964075,0.088266,56644.0,56643.0,0.048]
[1725939964275,0.088666,56644.0,56643.0,0.048]
[1725939965265,0.089666,56644.0,56643.0,0.048]
[1725939965468,0.094666,56644.0,56643.0,0.048]
[1725939969273,0.088269,56642.0,56641.0,0.0943]
[1725939969471,0.088669,56642.0,56641.0,0.0943]
[1725939970482,0.090669,56642.0,56641.0,0.0943]
[1725939971079,0.092669,56642.0,56641.0,0.0943]
[1725939971981,0.092669,56642.0,56641.0,0.18257]
[1725939972580,0.092669,56642.0,56641.0,0.23540933]
[1725939972780,0.092669,56642.0,56641.0,0.18257]
[1725939973679,0.092669,56642.0,56641.0,0.35302248]
[1725939973982,0.088261,56648.0,56647.0,0.088261]
[1725939974174,0.088255,56651.0,56650.0,0.088256]
[1725939974374,0.088255,56651.0,56650.0,0.2414284]
[1725939974683,0.088255,56651.0,56650.0,0.188256]
[1725939975176,0.088255,56651.0,56650.0,0.088256]
[1725939975778,0.096255,56651.0,56650.0,0.089256]
[1725939975978,0.096255,56651.0,56650.0,0.136056]
[1725939976481,0.096255,56651.0,56650.0,0.20641752]
[1725939977083,0.096255,56651.0,56650.0,0.137056]
[1725939980883,0.096255,56651.0,56650.0,0.16912434]
[1725939981084,0.096255,56651.0,56650.0,0.26912434]
[1725939981279,0.008,56651.0,56650.0,0.26912434]
[1725939981484,0.008,56651.0,56650.0,0.89309413]
[1725939981784,0.088247,56656.0,56655.0,0.088247]
[1725939981983,0.088242,56659.0,56658.0,0.088244]
[1725939982187,0.088235,56664.0,56658.0,0.1004]
[1725939982380,0.088235,56664.0,56663.0,0.15326978]
[1725939982573,0.088235,56664.0,56663.0,0.1]
[1725939982778,0.088235,56664.0,56661.0,0.07049304]
[1725939983087,0.088236,56663.0,56662.0,0.136038]
[1725939984987,0.088236,56663.0,56662.0,0.137038]
[1725939985186,0.088236,56663.0,56662.0,0.18986585]
[1725939986082,0.088236,56663.0,56662.0,0.137038]
[1725939986083,0.11684347,56663.0,56662.0,0.137038]
[1725939986288,0.11684347,56663.0,56662.0,0.138038]
[1725939987583,0.11684347,56663.0,56662.0,0.0498]
[1725939989388,0.20507956,56663.0,56662.0,0.002]
[1725939989588,0.29331556,56663.0,56662.0,0.002]
[1725939989785,0.36128159,56663.0,56662.0,0.00048757]
[1725939990789,0.3933602,56663.0,56662.0,0.00048757]
[1725939992193,0.5533602,56663.0,56662.0,0.00048757]
[1725939993087,0.088247,56656.0,56655.0,0.05405632]
[1725939993490,0.088647,56656.0,56655.0,0.05405632]
[1725939994192,0.089647,56656.0,56655.0,0.05505632]
[1725939994785,0.089647,56656.0,56655.0,0.00222847]
[1725939995293,0.089647,56656.0,56655.0,0.00322847]
[1725939995693,0.089647,56656.0,56655.0,0.09147747]
[1725939996592,0.089647,56656.0,56655.0,0.16197051]
[1725939996997,0.089647,56656.0,56655.0,0.09147747]
[1725939997197,0.089647,56656.0,56655.0,0.16197051]
[1725939997797,0.089647,56656.0,56655.0,0.00322847]
[1725939998396,0.089647,56656.0,56655.0,0.07372151]
[1725940000399,0.089647,56656.0,56655.0,0.00322847]
[1725940001197,0.089647,56656.0,56655.0,0.05606424]
[1725940003301,0.089647,56656.0,56655.0,0.00322847]
[1725940003999,0.177894,56656.0,56655.0,0.00322847]
[1725940004217,0.177894,56656.0,56655.0,0.05611058]
[1725940004390,0.177894,56656.0,56655.0,0.00322847]
[1725940004594,0.177894,56656.0,56655.0,0.05611984]
[1725940004794,0.089647,56656.0,56655.0,0.00322847]
[1725940010301,0.089647,56656.0,56655.0,0.09137236]
[1725940010523,0.089647,56656.0,56655.0,0.00322847]
[1725940010802,0.089647,56656.0,56655.0,0.09137236]
[1725940011097,0.089647,56656.0,56655.0,0.00322847]
[1725940011295,0.089647,56656.0,56655.0,0.17962136]
[1725940011698,0.089647,56656.0,56655.0,0.09147747]
[1725940011899,0.089647,56656.0,56655.0,0.27441267]
[1725940012100,0.089647,56656.0,56655.0,0.37441267]
[1725940012403,0.089647,56656.0,56655.0,0.28626878]
[1725940013099,0.089647,56656.0,56655.0,0.28504031]
[1725940013600,0.089647,56656.0,56655.0,0.37320953]
[1725940013990,0.089647,56656.0,56655.0,0.27844318]
[1725940014195,0.089647,56656.0,56655.0,0.3732637]
[1725940014998,0.089647,56656.0,56655.0,0.37326437]
[1725940016199,0.089647,56656.0,56655.0,0.24317527]
[1725940016697,0.089647,56656.0,56655.0,0.05492627]
[1725940017305,0.089647,56656.0,56655.0,0.002]
[1725940018105,0.089647,56656.0,56655.0,0.090249]
[1725940018691,0.089647,56656.0,56655.0,0.14318657]
[1725940019307,0.11825806,56656.0,56655.0,0.14318657]
[1725940019499,0.089647,56656.0,56655.0,0.14318657]
[1725940019705,0.089647,56656.0,56655.0,0.090249]
[1725940020011,0.089647,56656.0,56655.0,0.14320483]
[1725940021209,0.11825761,56656.0,56655.0,0.090249]
[1725940021999,0.30650461,56656.0,56655.0,0.002]
[1725940022205,0.21825761,56656.0,56655.0,0.002]
[1725940022999,0.277894,56656.0,56655.0,0.002]
[1725940023706,0.31046937,56656.0,56655.0,0.002]
[1725940031814,0.31046937,56656.0,56655.0,0.05494159]
[1725940031815,0.39871637,56656.0,56655.0,0.05494159]
[1725940032207,0.39871637,56656.0,56655.0,0.002]
[1725940039716,0.31046937,56656.0,56655.0,0.002]
[1725940041208,0.39871637,56656.0,56655.0,0.002]
[1725940047814,0.31046937,56656.0,56655.0,0.002]
[1725940048013,0.39871637,56656.0,56655.0,0.002]
[1725940048822,0.31046937,56656.0,56655.0,0.002]
[1725940049128,0.089647,56656.0,56655.0,0.002]
[1725940049514,0.089647,56656.0,56655.0,0.07258773]
[1725940053123,0.11825728,56656.0,56655.0,0.002]
[1725940054923,0.20650428,56656.0,56655.0,0.002]
[1725940055115,0.11825728,56656.0,56655.0,0.002]
[1725940056924,0.11825728,56656.0,56655.0,0.00047203]
[1725940057922,0.20650428,56656.0,56655.0,0.00047203]
[1725940058423,0.11825728,56656.0,56655.0,0.00047203]
[1725940058624,0.20650428,56656.0,56655.0,0.00047203]
[1725940059128,0.20650661,56656.0,56655.0,0.00047203]
[1725940060120,0.11825961,56656.0,56655.0,0.00047203]
[1725940061122,0.177894,56656.0,56655.0,0.00047203]
[1725940061630,0.177894,56656.0,56655.0,0.05337834]
[1725940062831,0.089647,56656.0,56655.0,0.05337834]
[1725940063728,0.177894,56656.0,56655.0,0.05337834]
[1725940064327,0.089647,56656.0,56655.0,0.05337834]
[1725940064935,0.089647,56656.0,56655.0,0.00047203]
[1725940073333,0.089647,56656.0,56655.0,0.08872103]
[1725940074238,0.088243,56659.0,56658.0,0.088244]
[1725940074439,0.088238,56662.0,56658.0,0.1004]
[1725940074735,0.088238,56662.0,56661.0,0.188239]
[1725940075329,0.088233,56665.0,56663.0,0.088235]
[1725940075536,0.10517426,56666.0,56664.0,0.1395]
[1725940075728,0.19340526,56666.0,56665.0,0.0004]
[1725940075933,0.088233,56665.0,56664.0,0.1395]
[1725940076127,0.088633,56665.0,56664.0,0.1395]
[1725940077341,0.088633,56665.0,56664.0,0.1405]
[1725940077541,0.11724047,56665.0,56664.0,0.1405]
[1725940077737,0.11724047,56665.0,56664.0,0.1415]
[1725940083034,0.088633,56665.0,56664.0,0.19439682]
[1725940083341,0.088633,56665.0,56664.0,0.1415]
[1725940091046,0.088633,56665.0,56664.0,0.0943]
[1725940091242,0.18779462,56665.0,56664.0,0.0797022]
[1725940094353,0.1872824,56665.0,56664.0,0.0797022]
[1725940095952,0.1872824,56665.0,56664.0,0.1115625]
[1725940096349,0.1872824,56665.0,56664.0,0.1997975]
[1725940096551,0.09912193,56665.0,56664.0,0.1997975]
[1725940096753,0.10521646,56665.0,56664.0,0.1997975]
[1725940097048,0.02860363,56667.0,56666.0,0.088231]
[1725940097049,0.10521646,56667.0,56666.0,0.088231]
[1725940097252,0.02860238,56667.0,56666.0,0.19737603]
[1725940097450,0.10521646,56668.0,56667.0,0.08823]
[1725940097653,0.10521646,56668.0,56667.0,0.0004]
[1725940097654,0.02860236,56668.0,56667.0,0.0004]
[1725940097946,0.02860236,56671.0,56667.0,0.0004]
[1725940098256,0.088222,56673.0,56672.0,0.088222]
[1725940098454,0.088222,56673.0,56672.0,0.088622]
[1725940099455,0.088217,56676.0,56675.0,0.088217]
[1725940099750,0.088217,56676.0,56675.0,0.14146653]
[1725940099964,0.088217,56676.0,56675.0,0.088617]
[1725940100143,0.088217,56676.0,56675.0,0.14147118]
[1725940101156,0.088217,56676.0,56675.0,0.088617]
[1725940101352,0.089217,56676.0,56675.0,0.090617]
[1725940101949,0.001,56676.0,56675.0,0.190617]
[1725940102458,0.001,56676.0,56675.0,0.16109272]
[1725940102656,0.001,56676.0,56675.0,0.090617]
[1725940103658,0.089216,56676.0,56675.0,0.090617]
[1725940106356,0.21188355,56676.0,56675.0,0.0024]
[1725940106557,0.31088049,56676.0,56675.0,0.0024]